{"text_format":"1","workbook":"xlsx","n_sheets":7,"sheets":["Master","2023","2024","2025","2026","Meldebogen","Ergebnis"],"not_rendered":{"charts":0,"images":0,"macros":1,"external_links":0,"defined_names":6,"comments":0,"pivot_tables":0},"unopened":[],"bounds":{"document_bytes":16777216,"sheet_cells":100000,"rows_first":2000,"rows_last":500,"rows_between":2000,"halvings":0,"cell_chars":16384,"cell_head_chars":4096},"cells_cut":0,"cells_raw":0,"read":"whole","date_system":"1900"}

{"sheet":"Master","index":0,"n_rows":20,"n_cols":28,"rows_kept":20,"cut":false,"hidden":false,"merged":[]}
["S.-Druck","Zahlstelle","Bearbeitet\nvon","Stand","Erstkontakt","1. Erinnerung","2. Erinnerung","Rücklauf","Bemerkung","Sonderzuständigkeit","Name1","Name2","Name3","Strasse","Nr","PLZ","Ort","Kontakt","Name","GK","Status","Kosten","Reisekosten","wann abgerechnet","im Auftrag","Ende","Datum Feststellung","Datum Aktualisierung"]
[null,12345678,"MA 11",null,"2025-09-01","2025-10-01","2025-10-16",null,null,"nein","Firma 1",null,null,"Zu den Katzentreppen",7,99974,"Mühlhausen",null,null,1,"gültiger Satz",null,null,null,"Auftragber "]
[null,12345678,"MA 12",null,"2025-09-02","2025-10-02","2025-10-17",null,null,"nein","Firma 2","Zusatz Firma 2",null,"Willy- Hussong- Str.",2,96446,"Coburg",null,null,3,"gültiger Satz",null,null,null,"Auftragber "]
[null,12345678,"MA 13",null,"2025-09-03",null,null,"x",null,"nein","Firma 3",null,null,"Raiffeisenstr.",2,91336,"Heroldsbach",null,null,1,"gültiger Satz",null,null,null,"Auftragber "]
[null,12345678,"MA 14",null,"2025-09-04","2025-10-04","2025-10-19",null,null,"nein","Firma 4",null,null,"Südwestpark",40,90449,"Nürnberg",null,null,1,"gültiger Satz",null,null,null,"Auftragber "]
[null,12345678,"MA 15",null,"2025-09-05","2025-10-05","2025-10-20",null,null,"ja","Firma 5",null,null,"Carl-Zeiss-Straße",2,89231,"Neu-Ulm",null,null,2,"gültiger Satz",null,null,null,"Auftragber "]
[null,12345678,"MA 16",null,"2025-09-06","2025-10-06","2025-10-21",null,null,"nein","Firma 6",null,null,"Riedheimer Straße",11,89129,"Langenau",null,null,1,"gültiger Satz",null,null,null,"Auftragber "]
[null,12345678,"MA 12",null,"2025-09-07",null,null,"v",null,"nein","Firma 7","Zusatz Firma 7",null,"Hubertus-Liebrecht-Straße",21,88396,"Biberach",null,null,1,"gültiger Satz",null,null,null,"Auftragber "]
[null,12345678,"MA 13",null,"2025-09-08","2025-10-08","2025-10-23",null,null,"nein","Firma 8",null,null,"Raueneggstr.",11,88212,"Ravensburg",null,null,1,"gültiger Satz",null,null,null,"Auftragber "]
[null,12345678,"MA 14",null,"2025-09-09","2025-10-09","2025-10-24",null,null,"nein","Firma 9",null,null,"Berger Weg",14,87538,"Fischen",null,null,1,"gültiger Satz",null,null,null,"Auftragber "]
[null,12345678,"MA 15",null,"2025-09-10","2025-10-10","2025-10-25",null,null,"nein","Firma 10","Zusatz Firma 10",null,"Einsteinstr.",10,78713,"Schramberg",null,null,3,"gültiger Satz",null,null,null,"Auftragber "]
[null,12345678,"MA 16",null,"2025-09-11","2025-10-11","2025-10-26",null,null,"nein","Firma 11",null,null,"Friedrichstr.",4,77815,"Bühl",null,null,2,"gültiger Satz",null,null,null,"Auftragber "]
[null,12345678,"MA 17",null,"2025-09-12","2025-10-12","2025-10-27",null,null,"nein","Firma 12",null,null,"Okenstraße",7,77652,"Offenburg",null,null,3,"gültiger Satz",null,null,null,"Auftragber "]
[null,12345678,"MA 18",null,"2025-09-13","2025-10-13","2025-10-28",null,null,"nein","Firma 13",null,null,"Alte Pforzheimer Str.",4,75217,"Birkenfeld",null,null,1,"gültiger Satz",null,null,null,"Auftragber "]
[null,12345678,"MA 13",null,"2025-09-14","2025-10-14","2025-10-29",null,null,"nein","Firma 14","Zusatz Firma 14",null,"Gewerbestr.",44,75217,"Birkenfeld",null,null,1,"gültiger Satz",null,null,null,"Auftragber "]
[null,12345678,"MA 14",null,"2025-09-15","2025-10-15","2025-10-30",null,null,"nein","Firma 15",null,null,"Güterstraße","9a",75177,"Pforzheim",null,null,1,"gültiger Satz",null,null,null,"Auftragber "]
[null,12345678,"MA 15",null,"2025-09-16","2025-10-16","2025-10-31",null,null,"nein","Firma 16",null,null,"Wagnerstr.",10,75173,"Pforzheim",null,null,2,"gültiger Satz",null,null,null,"Auftragber "]
[null,12345678,"MA 16",null,"2025-09-17","2025-10-17","2025-11-01",null,null,"nein","Firma 17",null,null,"Westendstraße",2,75172,"Pforzheim",null,null,1,"gültiger Satz",null,null,null,"Auftragber "]
[null,12345678,"MA 17",null,"2025-09-18","2025-10-18","2025-11-02",null,null,"nein","Firma 18",null,null,"Hebelstr.",4,74827,"Gundelsheim",null,null,1,"gültiger Satz",null,null,null,"Auftragber "]
[null,12345678,"MA 18",null,"2025-09-19","2025-10-19","2025-11-03",null,null,"nein","Firma 19","Zusatz Firma 19",null,"Waldstr.",79,74821,"Mosbach",null,null,1,"gültiger Satz",null,null,null,"Auftragber "]

{"sheet":"2023","index":1,"n_rows":43,"n_cols":28,"rows_kept":43,"cut":false,"hidden":false,"merged":[]}
["S.-Druck","Zahlstelle","Bearbeitet\nvon","Stand","Erstkontakt","1. Erinnerung","2. Erinnerung","Rücklauf","Bemerkung","Sonderzuständigkeit","Name1","Name2","Name3","Strasse","Nr","PLZ","Ort","Kontakt","Name","GK","Status","Kosten","Reisekosten","wann abgerechnet","im Auftrag","Ende","Datum Feststellung","Datum Aktualisierung"]
[null,12345678,"MA 11",null,"2025-09-01","2025-10-01","2025-10-16",null,null,"nein","Firma 1",null,null,"Zu den Katzentreppen",7,99974,"Mühlhausen",null,null,1,"gültiger Satz",null,null,null,"Auftragber "]
[null,12345678,"MA 12",null,"2025-09-02","2025-10-02","2025-10-17",null,null,"nein","Firma 2","Zusatz Firma 2",null,"Willy- Hussong- Str.",2,96446,"Coburg",null,null,3,"gültiger Satz",null,null,null,"Auftragber "]
[null,12345678,"MA 13",null,"2025-09-03",null,null,"x",null,"nein","Firma 3",null,null,"Raiffeisenstr.",2,91336,"Heroldsbach",null,null,1,"gültiger Satz",null,null,null,"Auftragber "]
[null,12345678,"MA 14",null,"2025-09-04","2025-10-04","2025-10-19",null,null,"nein","Firma 4",null,null,"Südwestpark",40,90449,"Nürnberg",null,null,1,"gültiger Satz",null,null,null,"Auftragber "]
[null,12345678,"MA 15",null,"2025-09-05","2025-10-05","2025-10-20",null,null,"ja","Firma 5",null,null,"Carl-Zeiss-Straße",2,89231,"Neu-Ulm",null,null,2,"gültiger Satz",null,null,null,"Auftragber "]
[null,12345678,"MA 16",null,"2025-09-06","2025-10-06","2025-10-21",null,null,"nein","Firma 6",null,null,"Riedheimer Straße",11,89129,"Langenau",null,null,1,"gültiger Satz",null,null,null,"Auftragber "]
[null,12345678,"MA 12",null,"2025-09-07",null,null,"x",null,"nein","Firma 7","Zusatz Firma 7",null,"Hubertus-Liebrecht-Straße",21,88396,"Biberach",null,null,1,"gültiger Satz",null,null,null,"Auftragber "]
[null,12345678,"MA 13",null,"2025-09-08","2025-10-08","2025-10-23",null,null,"nein","Firma 8",null,null,"Raueneggstr.",11,88212,"Ravensburg",null,null,1,"gültiger Satz",null,null,null,"Auftragber "]
[null,12345678,"MA 14",null,"2025-09-09","2025-10-09","2025-10-24",null,null,"nein","Firma 9",null,null,"Berger Weg",14,87538,"Fischen",null,null,1,"gültiger Satz",null,null,null,"Auftragber "]
[null,12345678,"MA 15",null,"2025-09-10","2025-10-10","2025-10-25",null,null,"nein","Firma 10","Zusatz Firma 10",null,"Einsteinstr.",10,78713,"Schramberg",null,null,3,"gültiger Satz",null,null,null,"Auftragber "]
[null,12345678,"MA 16",null,"2025-09-11","2025-10-11","2025-10-26",null,null,"nein","Firma 11",null,null,"Friedrichstr.",4,77815,"Bühl",null,null,2,"gültiger Satz",null,null,null,"Auftragber "]
[null,12345678,"MA 17",null,"2025-09-12","2025-10-12","2025-10-27",null,null,"nein","Firma 12",null,null,"Okenstraße",7,77652,"Offenburg",null,null,3,"gültiger Satz",null,null,null,"Auftragber "]
[null,12345678,"MA 18",null,"2025-09-13","2025-10-13","2025-10-28",null,null,"nein","Firma 13",null,null,"Alte Pforzheimer Str.",4,75217,"Birkenfeld",null,null,1,"gültiger Satz",null,null,null,"Auftragber "]
[null,12345678,"MA 13",null,"2025-09-14","2025-10-14","2025-10-29",null,null,"nein","Firma 14","Zusatz Firma 14",null,"Gewerbestr.",44,75217,"Birkenfeld",null,null,1,"gültiger Satz",null,null,null,"Auftragber "]
[null,12345678,"MA 14",null,"2025-09-15","2025-10-15","2025-10-30",null,null,"nein","Firma 15",null,null,"Güterstraße","9a",75177,"Pforzheim",null,null,1,"gültiger Satz",null,null,null,"Auftragber "]
[null,12345678,"MA 15",null,"2025-09-16","2025-10-16","2025-10-31",null,null,"nein","Firma 16",null,null,"Wagnerstr.",10,75173,"Pforzheim",null,null,2,"gültiger Satz",null,null,null,"Auftragber "]
[null,12345678,"MA 16",null,"2025-09-17","2025-10-17","2025-11-01",null,null,"nein","Firma 17",null,null,"Westendstraße",2,75172,"Pforzheim",null,null,1,"gültiger Satz",null,null,null,"Auftragber "]
[null,12345678,"MA 17",null,"2025-09-18","2025-10-18","2025-11-02",null,null,"nein","Firma 18",null,null,"Hebelstr.",4,74827,"Gundelsheim",null,null,1,"gültiger Satz",null,null,null,"Auftragber "]
[null,12345678,"MA 18",null,"2025-09-19","2025-10-19","2025-11-03",null,null,"nein","Firma 19","Zusatz Firma 19",null,"Waldstr.",79,74821,"Mosbach",null,null,1,"gültiger Satz",null,null,null,"Auftragber "]
[]
[]
[]
[]
[]
[]
[]
[]
[]
[]
[]
[]
[]
[]
[]
[]
[]
[]
[]
[]
[]
[]
[null,null,"  ","  "]

{"sheet":"2024","index":2,"n_rows":20,"n_cols":28,"rows_kept":20,"cut":false,"hidden":false,"merged":[]}
["S.-Druck","Zahlstelle","Bearbeitet\nvon","Stand","Erstkontakt","1. Erinnerung","2. Erinnerung","Rücklauf","Bemerkung","Sonderzuständigkeit","Name1","Name2","Name3","Strasse","Nr","PLZ","Ort","Kontakt","Name","GK","Status","Kosten","Reisekosten","Wann abgerechnet","Im Auftrag","Ende","Datum Feststellung","Datum Aktualisierung"]
[null,12345678,"MA 11",null,"2025-09-01","2025-10-01","2025-10-16",null,null,"nein","Firma 1",null,null,"Zu den Katzentreppen",7,99974,"Mühlhausen",null,null,1,"gültiger Satz",null,null,null,"Auftragber "]
[null,12345678,"MA 12",null,"2025-09-02","2025-10-02","2025-10-17",null,null,"nein","Firma 2","Zusatz Firma 2",null,"Willy- Hussong- Str.",2,96446,"Coburg",null,null,3,"gültiger Satz",null,null,null,"Auftragber "]
[null,12345678,"MA 13",null,"2025-09-03",null,null,"x",null,"nein","Firma 3",null,null,"Raiffeisenstr.",2,91336,"Heroldsbach",null,null,1,"gültiger Satz",null,null,null,"Auftragber "]
[null,12345678,"MA 14",null,"2025-09-04","2025-10-04","2025-10-19",null,null,"nein","Firma 4",null,null,"Südwestpark",40,90449,"Nürnberg",null,null,1,"gültiger Satz",null,null,null,"Auftragber "]
[null,12345678,"MA 15",null,"2025-09-05","2025-10-05","2025-10-20",null,null,"ja","Firma 5",null,null,"Carl-Zeiss-Straße",2,89231,"Neu-Ulm",null,null,2,"gültiger Satz",null,null,null,"Auftragber "]
[null,12345678,"MA 16",null,"2025-09-06","2025-10-06","2025-10-21",null,null,"nein","Firma 6",null,null,"Riedheimer Straße",11,89129,"Langenau",null,null,1,"gültiger Satz",null,null,null,"Auftragber "]
[null,12345678,"MA 12",null,"2025-09-07",null,null,"x",null,"nein","Firma 7","Zusatz Firma 7",null,"Hubertus-Liebrecht-Straße",21,88396,"Biberach",null,null,1,"gültiger Satz",null,null,null,"Auftragber "]
[null,12345678,"MA 13",null,"2025-09-08","2025-10-08","2025-10-23",null,null,"nein","Firma 8",null,null,"Raueneggstr.",11,88212,"Ravensburg",null,null,1,"gültiger Satz",null,null,null,"Auftragber "]
[null,12345678,"MA 14",null,"2025-09-09","2025-10-09","2025-10-24",null,null,"nein","Firma 9",null,null,"Berger Weg",14,87538,"Fischen",null,null,1,"gültiger Satz",null,null,null,"Auftragber "]
[null,12345678,"MA 15",null,"2025-09-10","2025-10-10","2025-10-25",null,null,"nein","Firma 10","Zusatz Firma 10",null,"Einsteinstr.",10,78713,"Schramberg",null,null,3,"gültiger Satz",null,null,null,"Auftragber "]
[null,12345678,"MA 16",null,"2025-09-11","2025-10-11","2025-10-26",null,null,"nein","Firma 11",null,null,"Friedrichstr.",4,77815,"Bühl",null,null,2,"gültiger Satz",null,null,null,"Auftragber "]
[null,12345678,"MA 17",null,"2025-09-12","2025-10-12","2025-10-27",null,null,"nein","Firma 12",null,null,"Okenstraße",7,77652,"Offenburg",null,null,3,"gültiger Satz",null,null,null,"Auftragber "]
[null,12345678,"MA 18",null,"2025-09-13","2025-10-13","2025-10-28",null,null,"nein","Firma 13",null,null,"Alte Pforzheimer Str.",4,75217,"Birkenfeld",null,null,1,"gültiger Satz",null,null,null,"Auftragber "]
[null,12345678,"MA 13",null,"2025-09-14","2025-10-14","2025-10-29",null,null,"nein","Firma 14","Zusatz Firma 14",null,"Gewerbestr.",44,75217,"Birkenfeld",null,null,1,"gültiger Satz",null,null,null,"Auftragber "]
[null,12345678,"MA 14",null,"2025-09-15","2025-10-15","2025-10-30",null,null,"nein","Firma 15",null,null,"Güterstraße","9a",75177,"Pforzheim",null,null,1,"gültiger Satz",null,null,null,"Auftragber "]
[null,12345678,"MA 15",null,"2025-09-16","2025-10-16","2025-10-31",null,null,"nein","Firma 16",null,null,"Wagnerstr.",10,75173,"Pforzheim",null,null,2,"gültiger Satz",null,null,null,"Auftragber "]
[null,12345678,"MA 16",null,"2025-09-17","2025-10-17","2025-11-01",null,null,"nein","Firma 17",null,null,"Westendstraße",2,75172,"Pforzheim",null,null,1,"gültiger Satz",null,null,null,"Auftragber "]
[null,12345678,"MA 17",null,"2025-09-18","2025-10-18","2025-11-02",null,null,"nein","Firma 18",null,null,"Hebelstr.",4,74827,"Gundelsheim",null,null,1,"gültiger Satz",null,null,null,"Auftragber "]
[null,12345678,"MA 18",null,"2025-09-19","2025-10-19","2025-11-03",null,null,"nein","Firma 19","Zusatz Firma 19",null,"Waldstr.",79,74821,"Mosbach",null,null,1,"gültiger Satz",null,null,null,"Auftragber "]

{"sheet":"2025","index":3,"n_rows":43,"n_cols":28,"rows_kept":43,"cut":false,"hidden":false,"merged":[[40,4,41,4],[40,5,41,5],[40,6,41,6]]}
["S.-Druck","Zahlstelle","Bearbeitet\nvon","Stand","Erstkontakt","1. Erinnerung","2. Erinnerung","Rücklauf","Bemerkung","Sonder-\nzuständigkeit","Name1","Name2","Name3","Strasse","Nr","PLZ","Ort","Kontakt","Name","GK","Status","Kosten","Reisekosten","wann abgerechnet","im Auftrag","Ende","Datum Feststellung","Datum Aktualisierung"]
["X",12345678,"MM","erl.","2025-09-02","2025-10-02","2025-10-17","x",null,"nein","Firma 1",null,null,"Strasse 1",1,12345,"Ort 1","martin--m@t-online.de","Herr Martin",1,"gueltiger Satz",50,null,null,"Auftraggeber"]
["X",12345678,"MM","erl.","2025-09-17","2025-10-17","2025-11-01",null,null,"nein","Firma 2","Zusatz Firma 2","Zusatz Firma 2","Strasse 2",1,12345,"Ort 2",null,"Frau Muster",1,"gueltiger Satz",100,null,null,"Auftraggeber"]
["X",12345678,"MM","erl.","2025-09-15",null,null,"x",null,"nein","Firma 3",null,null,"Strasse 3",1,12345,"Ort 3",null,"Frau Beispiel",1,"gueltiger Satz",150,null,"2025-07-03","Auftraggeber"]
[null,12345678,"MM","erl.","2025-09-17",null,null,"x",null,"ja","Firma 4",null,null,"Strasse 4",1,12345,"Ort 4",null,null,3,"gueltiger Satz",200,100,"2025-07-04","Auftraggeber"]
[null,12345678,"MM","erl.","2025-09-17","2025-10-17","2025-11-01",null,null,"nein","Firma 5",null,null,"Strasse 5",1,12345,"Ort 5",null,null,2,"gueltiger Satz",250,200,"2025-07-05","Auftraggeber"]
[null,12345678,"MM","erl.","2025-08-06","2025-09-05","2025-09-20","2025-10-10",null,"nein","Firma 6",null,null,"Strasse 6",1,12345,"Ort 6",null,null,1,"gueltiger Satz",300,null,"2025-07-06","Auftraggeber"]
[null,12345678,"MM","erl.","2025-09-09","2025-10-09","2025-10-24",null,null,"nein","Firma 7","Zusatz Firma 7",null,"Strasse 7",1,12345,"Ort 7",null,null,1,"gueltiger Satz",350,400,"2025-07-07","Auftraggeber"]
[null,12345678,"MM","erl.","2025-08-08",null,null,"x",null,"nein","Firma 8",null,null,"Strasse 8",1,12345,"Ort 8",null,null,1,"gueltiger Satz",400,500,"2025-07-08","Auftraggeber"]
[null,12345678,"MM","erl.","2025-08-09","2025-09-08","2025-09-23",null,null,"nein","Firma 9",null,null,"Strasse 9",1,12345,"Ort 9",null,null,1,"gueltiger Satz",450,null,"2025-07-09","Auftraggeber"]
[null,12345678,"MM","erl.","2025-08-10",null,null,null,null,"nein","Firma 10","Zusatz Firma 10",null,"Strasse 10",1,12345,"Ort 10",null,null,1,"gueltiger Satz",500,null,null,"Auftraggeber"]
[null,12345678,"MM","erl.","2025-08-11","2025-09-10","2025-09-25","x",null,"nein","Firma 11",null,null,"Strasse 11",1,12345,"Ort 11",null,null,1,"gueltiger Satz",550,null,null,"Auftraggeber"]
[null,12345678,"MM","in Bearbeitung","2025-09-03","2025-10-05","2025-10-20",null,null,"nein","Firma 12",null,null,"Strasse 12",1,12345,"Ort 12",null,null,3,"gueltiger Satz",600,null,null,"Auftraggeber"]
[null,12345678,"MM","erl.","2025-09-04",null,null,null,null,"nein","Firma 13",null,null,"Strasse 13",1,12345,"Ort 13",null,null,1,"gueltiger Satz",650,null,"2025-07-13","Auftraggeber"]
[null,12345678,"MM","erl.",null,null,null,"ja",null,"nein","Firma 14","Zusatz Firma 14",null,"Strasse 14",1,12345,"Ort 14",null,null,1,"gueltiger Satz",700,null,"2025-07-14","Auftraggeber"]
[null,12345678,"MM","erl.","2025-09-06",null,null,null,null,"nein","Firma 15",null,null,"Strasse 15",1,12345,"Ort 15",null,null,1,"gueltiger Satz",750,null,"2025-07-15","Auftraggeber"]
[null,12345678,"MM","erl.","2025-09-07",null,null,"ja",null,"nein","Firma 16",null,null,"Strasse 16",1,12345,"Ort 16",null,null,1,"gueltiger Satz",800,null,null,"Auftraggeber"]
[null,12345678,"MM","in Bearbeitung","2025-09-08","2025-10-08","2025-10-23",null,null,"nein","Firma 17",null,null,"Strasse 17",1,12345,"Ort 17",null,null,1,"gueltiger Satz",850,null,"2025-07-17","Auftraggeber"]
[null,12345678,"MM","erl.","2025-09-09",null,null,"x",null,"nein","Firma 18",null,null,"Strasse 18",1,12345,"Ort 18",null,null,1,"gueltiger Satz",900,null,"2025-07-18","Auftraggeber"]
[null,12345678,"MM","erl.","2025-09-13","2025-10-13","2025-10-28",null,null,"nein","Firma 19",null,null,"Strasse 19",1,12345,"Ort 19",null,null,1,"gueltiger Satz",950,null,"2025-07-19","Auftraggeber"]
[null,12345678,"MM","erl.","2025-09-11",null,null,"x",null,"nein","Firma 20",null,null,"Strasse 20",1,12345,"Ort 20",null,null,1,"gueltiger Satz",1000,null,null,"Auftraggeber"]
[null,12345678,"MM","erl.","2025-09-12","2025-10-12","2025-10-27",null,null,"nein","Firma 21",null,null,"Strasse 21",1,12345,"Ort 21",null,null,1,"gueltiger Satz",1050,null,null,"Auftraggeber"]
[null,12345678,"MM","in Bearbeitung","2025-09-07","2025-10-07","2025-10-22",null,null,"nein","Firma 22",null,null,"Strasse 22",1,12345,"Ort 22",null,null,3,"gueltiger Satz",1100,null,null,"Auftraggeber"]
[null,12345678,"MM","in Bearbeitung","2025-08-28",null,null,"2025-10-10",null,"nein","Firma 23",null,null,"Strasse 23",1,12345,"Ort 23",null,null,1,"gueltiger Satz",1150,null,null,"Auftraggeber"]
[null,12345678,"MM","entfällt","2025-08-09",null,null,null,null,"nein","Firma 24",null,null,"Strasse 24",1,12345,"Ort 24",null,null,2,"gueltiger Satz",1200,null,null,"Auftraggeber"]
[null,12345678,"MM","in Bearbeitung","2025-09-16","2025-10-16","2025-10-31",null,null,"nein","Firma 25",null,null,"Strasse 25",1,12345,"Ort 25",null,null,1,"gueltiger Satz",null,null,null,"Auftraggeber"]
[null,12345678,"MM","erl.","2025-09-09","2025-10-09","2025-10-24",null,null,"nein","Firma 26",null,null,"Strasse 26",1,12345,"Ort 26",null,null,1,"gueltiger Satz",null,null,null,"Auftraggeber"]
[null,12345678,"MM","erl.","2025-09-13","2025-10-13","2025-10-28",null,null,"nein","Firma 27",null,null,"Strasse 27",1,12345,"Ort 27",null,null,1,"gueltiger Satz",null,null,null,"Auftraggeber"]
[null,12345678,"MM","erl.","2025-09-16","2025-10-16","2025-10-31",null,null,"nein","Firma 28",null,null,"Strasse 28",1,12345,"Ort 28",null,null,1,"gueltiger Satz",null,null,null,"Auftraggeber"]
[null,12345678,"MM","erl.","2025-09-16","2025-10-16","2025-10-31",null,null,"nein","Firma 29",null,null,"Strasse 29",1,12345,"Ort 29",null,null,1,"gueltiger Satz",null,null,null,"Auftraggeber"]
[null,12345678,"MM","erl.","2025-09-16","2025-10-16","2025-10-31",null,null,"nein","Firma 30",null,null,"Strasse 30",1,12345,"Ort 30",null,null,1,"gueltiger Satz",null,null,null,"Auftraggeber"]
[null,12345678,"MM","erl.","2025-09-16","2025-10-16","2025-10-31",null,null,"nein","Firma 31",null,null,"Strasse 31",1,12345,"Ort 31",null,null,1,"gueltiger Satz",null,null,null,"Auftraggeber"]
[null,12345678,"MM","erl.","2025-09-16","2025-10-16","2025-10-31",null,null,"nein","Firma 32",null,null,"Strasse 32",1,12345,"Ort 32",null,null,1,"gueltiger Satz",null,null,null,"Auftraggeber"]
[null,12345678,"MM","erl.","2025-09-16","2025-10-16","2025-10-31",null,null,"nein","Firma 33",null,null,"Strasse 33",1,12345,"Ort 33",null,null,1,"gueltiger Satz",null,null,null,"Auftraggeber"]
[]
[]
[]
[]
[]
[]
[null,"Davon entfallen:",{"$f":"COUNTIF(D2:D35,\"entfällt\")","v":1},null,{"$f":"COUNT(B2:B35)","v":33},63,{"$f":"COUNTIF(G2:G35,TODAY())","v":1}]
[null,"Davon erledigt:",{"$f":"COUNTIF(D2:D35,\"erl.\")","v":27}]
[null,"Davon in Arbeit",{"$f":"COUNTIF(D2:D35,\"in Bearbeitung\")","v":5}]

{"sheet":"2026","index":4,"n_rows":20,"n_cols":28,"rows_kept":20,"cut":false,"hidden":false,"merged":[]}
["S.-Druck","Zahlstelle","Bearbeitet\nvon","Stand","Erstkontakt","1. Erinnerung","2. Erinnerung","Rücklauf","Bemerkung","Sonder-\nzuständigkeit","Name1","Name2","Name3","Strasse","Nr","PLZ","Ort","Kontakt","Name","GK","Status","Kosten","Reisekosten","wann abgerechnet","im Auftrag","Ende","Datum Feststellung","Datum Aktualisierung"]
[null,12345678,"MA 11",null,"2025-09-01","2025-10-01","2025-10-16",null,null,"nein","Firma 1",null,null,"Zu den Katzentreppen",7,99974,"Mühlhausen",null,null,1,"gültiger Satz",null,null,null,"Auftragber "]
[null,12345678,"MA 12",null,"2025-09-02","2025-10-02","2025-10-17",null,null,"nein","Firma 2","Zusatz Firma 2",null,"Willy- Hussong- Str.",2,96446,"Coburg",null,null,3,"gültiger Satz",null,null,null,"Auftragber "]
[null,12345678,"MA 13",null,"2025-09-03","2025-10-03","2025-10-18","x",null,"nein","Firma 3",null,null,"Raiffeisenstr.",2,91336,"Heroldsbach",null,null,1,"gültiger Satz",null,null,null,"Auftragber "]
[null,12345678,"MA 14",null,"2025-09-04","2025-10-04","2025-10-19",null,null,"nein","Firma 4",null,null,"Südwestpark",40,90449,"Nürnberg",null,null,1,"gültiger Satz",null,null,null,"Auftragber "]
[null,12345678,"MA 15",null,"2025-09-05","2025-10-05","2025-10-20",null,null,"ja","Firma 5",null,null,"Carl-Zeiss-Straße",2,89231,"Neu-Ulm",null,null,2,"gültiger Satz",null,null,null,"Auftragber "]
[null,12345678,"MA 16",null,"2025-09-06","2025-10-06","2025-10-21",null,null,"nein","Firma 6",null,null,"Riedheimer Straße",11,89129,"Langenau",null,null,1,"gültiger Satz",null,null,null,"Auftragber "]
[null,12345678,"MA 12",null,"2025-09-07","2025-10-07","2025-10-22","x",null,"nein","Firma 7","Zusatz Firma 7",null,"Hubertus-Liebrecht-Straße",21,88396,"Biberach",null,null,1,"gültiger Satz",null,null,null,"Auftragber "]
[null,12345678,"MA 13",null,"2025-09-08","2025-10-08","2025-10-23",null,null,"nein","Firma 8",null,null,"Raueneggstr.",11,88212,"Ravensburg",null,null,1,"gültiger Satz",null,null,null,"Auftragber "]
[null,12345678,"MA 14",null,"2025-09-09","2025-10-09","2025-10-24",null,null,"nein","Firma 9",null,null,"Berger Weg",14,87538,"Fischen",null,null,1,"gültiger Satz",null,null,null,"Auftragber "]
[null,12345678,"MA 15",null,"2025-09-10","2025-10-10","2025-10-25",null,null,"nein","Firma 10","Zusatz Firma 10",null,"Einsteinstr.",10,78713,"Schramberg",null,null,3,"gültiger Satz",null,null,null,"Auftragber "]
[null,12345678,"MA 16",null,"2025-09-11","2025-10-11","2025-10-26",null,null,"nein","Firma 11",null,null,"Friedrichstr.",4,77815,"Bühl",null,null,2,"gültiger Satz",null,null,null,"Auftragber "]
[null,12345678,"MA 17",null,"2025-09-12","2025-10-12","2025-10-27",null,null,"nein","Firma 12",null,null,"Okenstraße",7,77652,"Offenburg",null,null,3,"gültiger Satz",null,null,null,"Auftragber "]
[null,12345678,"MA 18",null,"2025-09-13","2025-10-13","2025-10-28",null,null,"nein","Firma 13",null,null,"Alte Pforzheimer Str.",4,75217,"Birkenfeld",null,null,1,"gültiger Satz",null,null,null,"Auftragber "]
[null,12345678,"MA 13",null,"2025-09-14","2025-10-14","2025-10-29",null,null,"nein","Firma 14","Zusatz Firma 14",null,"Gewerbestr.",44,75217,"Birkenfeld",null,null,1,"gültiger Satz",null,null,null,"Auftragber "]
[null,12345678,"MA 14",null,"2025-09-15","2025-10-15","2025-10-30",null,null,"nein","Firma 15",null,null,"Güterstraße","9a",75177,"Pforzheim",null,null,1,"gültiger Satz",null,null,null,"Auftragber "]
[null,12345678,"MA 15",null,"2025-09-16","2025-10-16","2025-10-31",null,null,"nein","Firma 16",null,null,"Wagnerstr.",10,75173,"Pforzheim",null,null,2,"gültiger Satz",null,null,null,"Auftragber "]
[null,12345678,"MA 16",null,"2025-09-17","2025-10-17","2025-11-01",null,null,"nein","Firma 17",null,null,"Westendstraße",2,75172,"Pforzheim",null,null,1,"gültiger Satz",null,null,null,"Auftragber "]
[null,12345678,"MA 17",null,"2025-09-18","2025-10-18","2025-11-02",null,null,"nein","Firma 18",null,null,"Hebelstr.",4,74827,"Gundelsheim",null,null,1,"gültiger Satz",null,null,null,"Auftragber "]
[null,12345678,"MA 18",null,"2025-09-19","2025-10-19","2025-11-03",null,null,"nein","Firma 19","Zusatz Firma 19",null,"Waldstr.",79,74821,"Mosbach",null,null,1,"gültiger Satz",null,null,null,"Auftragber "]

{"sheet":"Meldebogen","index":5,"n_rows":60,"n_cols":7,"rows_kept":60,"cut":false,"hidden":false,"merged":[[1,1,6,2]]}
[]
[null,null,null,"Prüfung"]
[]
[]
[]
[]
[]
[]
[null,"Meldung für Monat/Jahr"]
[]
[null,"Name"]
[]
[]
[null,"KK"]
[]
[null,"Zahlstelle","Name","GK","Kosten","Reise-kosten","Rechnungssumme insgesamt in EUR"]
[null,null,null,null,null,null,{"$f":"Tabelle5[[#This Row],[Kosten]]+Tabelle5[[#This Row],[Reise-kosten]]","v":0}]
[null,null,null,null,null,null,{"$f":"Tabelle5[[#This Row],[Kosten]]+Tabelle5[[#This Row],[Reise-kosten]]","v":0}]
[null,null,null,null,null,null,{"$f":"Tabelle5[[#This Row],[Kosten]]+Tabelle5[[#This Row],[Reise-kosten]]","v":0}]
[null,null,null,null,null,null,{"$f":"Tabelle5[[#This Row],[Kosten]]+Tabelle5[[#This Row],[Reise-kosten]]","v":0}]
[null,null,null,null,null,null,{"$f":"Tabelle5[[#This Row],[Kosten]]+Tabelle5[[#This Row],[Reise-kosten]]","v":0}]
[null,null,null,null,null,null,{"$f":"Tabelle5[[#This Row],[Kosten]]+Tabelle5[[#This Row],[Reise-kosten]]","v":0}]
[null,null,null,null,null,null,{"$f":"Tabelle5[[#This Row],[Kosten]]+Tabelle5[[#This Row],[Reise-kosten]]","v":0}]
[null,null,null,null,null,null,{"$f":"Tabelle5[[#This Row],[Kosten]]+Tabelle5[[#This Row],[Reise-kosten]]","v":0}]
[null,null,null,null,null,null,{"$f":"Tabelle5[[#This Row],[Kosten]]+Tabelle5[[#This Row],[Reise-kosten]]","v":0}]
[null,null,null,null,null,null,{"$f":"Tabelle5[[#This Row],[Kosten]]+Tabelle5[[#This Row],[Reise-kosten]]","v":0}]
[null,null,null,null,null,null,{"$f":"Tabelle5[[#This Row],[Kosten]]+Tabelle5[[#This Row],[Reise-kosten]]","v":0}]
[null,null,null,null,null,null,{"$f":"Tabelle5[[#This Row],[Kosten]]+Tabelle5[[#This Row],[Reise-kosten]]","v":0}]
[null,null,null,null,null,null,{"$f":"Tabelle5[[#This Row],[Kosten]]+Tabelle5[[#This Row],[Reise-kosten]]","v":0}]
[null,null,null,null,null,null,{"$f":"Tabelle5[[#This Row],[Kosten]]+Tabelle5[[#This Row],[Reise-kosten]]","v":0}]
[null,null,null,null,null,null,{"$f":"Tabelle5[[#This Row],[Kosten]]+Tabelle5[[#This Row],[Reise-kosten]]","v":0}]
[null,null,null,null,null,null,{"$f":"Tabelle5[[#This Row],[Kosten]]+Tabelle5[[#This Row],[Reise-kosten]]","v":0}]
[null,null,null,null,null,null,{"$f":"Tabelle5[[#This Row],[Kosten]]+Tabelle5[[#This Row],[Reise-kosten]]","v":0}]
[null,null,null,null,null,null,{"$f":"Tabelle5[[#This Row],[Kosten]]+Tabelle5[[#This Row],[Reise-kosten]]","v":0}]
[null,null,null,null,null,null,{"$f":"Tabelle5[[#This Row],[Kosten]]+Tabelle5[[#This Row],[Reise-kosten]]","v":0}]
[null,null,null,null,null,null,{"$f":"Tabelle5[[#This Row],[Kosten]]+Tabelle5[[#This Row],[Reise-kosten]]","v":0}]
[null,null,null,null,null,null,{"$f":"Tabelle5[[#This Row],[Kosten]]+Tabelle5[[#This Row],[Reise-kosten]]","v":0}]
[null,null,null,null,null,null,{"$f":"Tabelle5[[#This Row],[Kosten]]+Tabelle5[[#This Row],[Reise-kosten]]","v":0}]
[null,null,null,null,null,null,{"$f":"Tabelle5[[#This Row],[Kosten]]+Tabelle5[[#This Row],[Reise-kosten]]","v":0}]
[null,null,null,null,null,null,{"$f":"Tabelle5[[#This Row],[Kosten]]+Tabelle5[[#This Row],[Reise-kosten]]","v":0}]
[null,null,null,null,null,null,{"$f":"Tabelle5[[#This Row],[Kosten]]+Tabelle5[[#This Row],[Reise-kosten]]","v":0}]
[null,null,null,null,null,null,{"$f":"Tabelle5[[#This Row],[Kosten]]+Tabelle5[[#This Row],[Reise-kosten]]","v":0}]
[null,null,null,null,null,null,{"$f":"Tabelle5[[#This Row],[Kosten]]+Tabelle5[[#This Row],[Reise-kosten]]","v":0}]
[null,null,null,null,null,null,{"$f":"Tabelle5[[#This Row],[Kosten]]+Tabelle5[[#This Row],[Reise-kosten]]","v":0}]
[null,null,null,null,null,null,{"$f":"Tabelle5[[#This Row],[Kosten]]+Tabelle5[[#This Row],[Reise-kosten]]","v":0}]
[null,null,null,null,null,null,{"$f":"Tabelle5[[#This Row],[Kosten]]+Tabelle5[[#This Row],[Reise-kosten]]","v":0}]
[null,null,null,null,null,null,{"$f":"Tabelle5[[#This Row],[Kosten]]+Tabelle5[[#This Row],[Reise-kosten]]","v":0}]
[null,null,null,null,null,null,{"$f":"Tabelle5[[#This Row],[Kosten]]+Tabelle5[[#This Row],[Reise-kosten]]","v":0}]
[null,null,null,null,null,null,{"$f":"Tabelle5[[#This Row],[Kosten]]+Tabelle5[[#This Row],[Reise-kosten]]","v":0}]
[null,"Gesamt",null,null,null,null,{"$f":"SUBTOTAL(109,Tabelle5[Rechnungssumme insgesamt in EUR])","v":0}]
[]
[null,"Ich versichere die Richtigkeit meiner Angaben:"]
[]
[]
[]
[null,{"$f":"TODAY()","v":"2025-10-22"}]
[null,"Datum",null,null,"Unterschrift"]
[null,"*falls bereits abgerechnet Kopie beifügen"]
[]
[null,"Bemerkungen"]

{"sheet":"Ergebnis","index":6,"n_rows":1,"n_cols":28,"rows_kept":1,"cut":false,"hidden":false,"merged":[]}
["S.-Druck","Zahlstelle","Bearbeitet\nvon","Stand","Erstkontakt","1. Erinnerung","2. Erinnerung","Rücklauf","Bemerkung","Sonder-\nzuständigkeit","Name1","Name2","Name3","Strasse","Nr","PLZ","Ort","Kontakt","Name","GK","Status","Kosten","Reisekosten","wann abgerechnet","im Auftrag","Ende","Datum Feststellung","Datum Aktualisierung"]